[Event "Titled Tuesday Blitz September 13 Late 2022"]
[White "Vasquez Schroeder, Rodrigo"]
[Black "Putnam, Liam"]
[WhiteFideId "3400042"]
[BlackFideId "30938279"]
[WhiteElo "2577"]
[BlackElo "2031"]
[Result "1-0"]
[Round "07"]
[TimeControl "180+1"]
[Date "2022.09.13"]
[WhiteClock "0:00:49"]
[BlackClock "0:00:04"]

1. e4 {[%clk 0:03:00]}  c5 {[%clk 0:02:56]} 2. Nf3 {[%clk 0:02:59]}  e6 {[%clk 0:02:57]} 3. d4 {[%clk 0:03:00]}  cxd4 {[%clk 0:02:58]} 4. Nxd4 {[%clk 0:03:00]}  Nc6 {[%clk 0:02:59]} 5. Nb5 {[%clk 0:03:00]}  d6 {[%clk 0:02:44]} 6. c4 {[%clk 0:03:00]}  a6 {[%clk 0:02:44]} 7. N5c3 {[%clk 0:03:00]}  Nf6 {[%clk 0:02:44]} 8. Be2 {[%clk 0:03:00]}  Be7 {[%clk 0:02:44]} 9. O-O {[%clk 0:03:00]}  O-O {[%clk 0:02:45]} 10. Na3 {[%clk 0:03:00]}  b6 {[%clk 0:02:43]} 11. Be3 {[%clk 0:03:00]}  Bb7 {[%clk 0:02:43]} 12. Rc1 {[%clk 0:03:01]}  Rc8 {[%clk 0:02:41]} 13. Qd2 {[%clk 0:02:59]}  Qc7 {[%clk 0:02:41]} 14. f3 {[%clk 0:02:57]}  Rfd8 {[%clk 0:02:39]} 15. Nd5 {[%clk 0:02:57]}  exd5 {[%clk 0:02:33]} 16. cxd5 {[%clk 0:02:58]}  Qd7 {[%clk 0:02:33]} 17. dxc6 {[%clk 0:02:56]}  Rxc6 {[%clk 0:02:34]} 18. Rxc6 {[%clk 0:02:54]}  Bxc6 {[%clk 0:02:27]} 19. Bxb6 {[%clk 0:02:54]}  Rb8 {[%clk 0:02:27]} 20. Bd4 {[%clk 0:02:54]}  Qb7 {[%clk 0:02:23]} 21. Nc4 {[%clk 0:02:51]}  Bb5 {[%clk 0:02:17]} 22. b3 {[%clk 0:02:44]}  h6 {[%clk 0:02:02]} 23. Rc1 {[%clk 0:02:39]}  d5 {[%clk 0:01:36]} 24. Na5 {[%clk 0:02:38]}  Qd7 {[%clk 0:01:33]} 25. e5 {[%clk 0:02:36]}  Ne8 {[%clk 0:01:33]} 26. Bxb5 {[%clk 0:02:33]}  Rxb5 {[%clk 0:01:29]} 27. Nc6 {[%clk 0:02:33]}  Bf8 {[%clk 0:01:29]} 28. Be3 {[%clk 0:02:27]}  Nc7 {[%clk 0:01:28]} 29. Nd4 {[%clk 0:02:27]}  Rc5 {[%clk 0:01:21]} 30. Rd1 {[%clk 0:02:22]}  Nb5 {[%clk 0:01:10]} 31. Nxb5 {[%clk 0:02:18]}  Rxb5 {[%clk 0:01:11]} 32. f4 {[%clk 0:02:17]}  Qf5 {[%clk 0:01:10]} 33. Qd3 {[%clk 0:02:16]}  Qe6 {[%clk 0:01:06]} 34. Bd4 {[%clk 0:02:15]}  Bc5 {[%clk 0:00:58]} 35. Rc1 {[%clk 0:02:14]}  Qb6 {[%clk 0:00:49]} 36. Rxc5 {[%clk 0:01:56]}  Rxc5 {[%clk 0:00:50]} 37. Kf2 {[%clk 0:01:53]}  Rc2+ {[%clk 0:00:44]} 38. Qxc2 {[%clk 0:01:53]}  Qxd4+ {[%clk 0:00:45]} 39. Kf3 {[%clk 0:01:54]}  g5 {[%clk 0:00:36]} 40. g3 {[%clk 0:01:51]}  Qg1 {[%clk 0:00:33]} 41. Qe2 {[%clk 0:01:31]}  d4 {[%clk 0:00:20]} 42. Ke4 {[%clk 0:01:27]}  Kg7 {[%clk 0:00:13]} 43. f5 {[%clk 0:01:24]}  Qa1 {[%clk 0:00:10]} 44. f6+ {[%clk 0:01:19]}  Kg8 {[%clk 0:00:08]} 45. Qc2 {[%clk 0:01:17]}  h5 {[%clk 0:00:05]} 46. Qc8+ {[%clk 0:01:12]}  Kh7 {[%clk 0:00:05]} 47. Qf5+ {[%clk 0:01:12]}  Kh6 {[%clk 0:00:06]} 48. Kd5 {[%clk 0:01:04]}  Qxa2 {[%clk 0:00:03]} 49. Qd3 {[%clk 0:01:01]}  Qa5+ {[%clk 0:00:03]} 50. Kxd4 {[%clk 0:01:00]}  Qb4+ {[%clk 0:00:03]} 51. Ke3 {[%clk 0:01:00]}  Qe1+ {[%clk 0:00:04]} 52. Kd4 {[%clk 0:00:59]}  Qf2+ {[%clk 0:00:04]} 53. Kd5 {[%clk 0:00:59]}  Qxh2 {[%clk 0:00:05]} 54. e6 {[%clk 0:00:58]}  Qg2+ {[%clk 0:00:02]} 55. Kd6 {[%clk 0:00:59]}  fxe6 {[%clk 0:00:02]} 56. Kxe6 {[%clk 0:00:54]}  h4 {[%clk 0:00:03]} 57. gxh4 {[%clk 0:00:51]}  gxh4 {[%clk 0:00:03]} 58. Qe3+ {[%clk 0:00:51]}  Kh7 {[%clk 0:00:02]} 59. f7 {[%clk 0:00:49]}  Qg6+ {[%clk 0:00:01]} 60. Ke7 {[%clk 0:00:49]}  Qg7 {[%clk 0:00:02]} 61. Qe4+ {[%clk 0:00:49]}  Kh8 {[%clk 0:00:01]} 62. Qxh4+ {[%clk 0:00:49]}  Qh7 {[%clk 0:00:02]} 63. Qxh7+ {[%clk 0:00:49]}  Kxh7 {[%clk 0:00:03]} 64. f8=Q {[%clk 0:00:49]}  Kg6 {[%clk 0:00:04]} 65. Qf6+ {[%clk 0:00:49]} 1-0


[Site "https://www.chess.com"]

[Event "Titled Tuesday Blitz September 13 Late 2022"]
[White "Xiong, Jeffery"]
[Black "Tayar, Jonathan"]
[WhiteFideId "2047640"]
[BlackFideId "2606534"]
[WhiteElo "2714"]
[BlackElo "2413"]
[Result "1-0"]
[Round "07"]
[TimeControl "180+1"]
[Date "2022.09.13"]
[WhiteClock "0:02:12"]
[BlackClock "0:00:09"]

1. c4 {[%clk 0:03:00]}  g6 {[%clk 0:02:59]} 2. d4 {[%clk 0:02:58]}  Bg7 {[%clk 0:02:59]} 3. e4 {[%clk 0:02:58]}  d6 {[%clk 0:02:59]} 4. Nc3 {[%clk 0:02:57]}  Nf6 {[%clk 0:02:59]} 5. Be2 {[%clk 0:02:56]}  O-O {[%clk 0:02:59]} 6. Be3 {[%clk 0:02:57]}  c6 {[%clk 0:02:57]} 7. Nf3 {[%clk 0:02:57]}  e5 {[%clk 0:02:51]} 8. d5 {[%clk 0:02:45]}  Ng4 {[%clk 0:02:41]} 9. Bg5 {[%clk 0:02:45]}  f6 {[%clk 0:02:41]} 10. Bh4 {[%clk 0:02:45]}  h5 {[%clk 0:02:36]} 11. Nd2 {[%clk 0:02:45]}  Nh6 {[%clk 0:02:33]} 12. f3 {[%clk 0:02:44]}  c5 {[%clk 0:02:28]} 13. a3 {[%clk 0:02:44]}  a5 {[%clk 0:02:27]} 14. b4 {[%clk 0:02:43]}  axb4 {[%clk 0:02:25]} 15. axb4 {[%clk 0:02:44]}  Rxa1 {[%clk 0:02:23]} 16. Qxa1 {[%clk 0:02:45]}  cxb4 {[%clk 0:02:15]} 17. Nb5 {[%clk 0:02:45]}  Na6 {[%clk 0:02:15]} 18. O-O {[%clk 0:02:45]}  Bd7 {[%clk 0:02:10]} 19. Bf2 {[%clk 0:02:43]}  Nf7 {[%clk 0:02:04]} 20. Rc1 {[%clk 0:02:41]}  Qe7 {[%clk 0:02:02]} 21. Qa5 {[%clk 0:02:39]}  Rc8 {[%clk 0:02:00]} 22. Na7 {[%clk 0:02:39]}  Ra8 {[%clk 0:01:55]} 23. Qb6 {[%clk 0:02:38]}  Be8 {[%clk 0:01:46]} 24. Nb3 {[%clk 0:02:38]}  Bh6 {[%clk 0:01:43]} 25. Ra1 {[%clk 0:02:38]}  f5 {[%clk 0:01:22]} 26. c5 {[%clk 0:02:37]}  Nxc5 {[%clk 0:01:19]} 27. Nxc5 {[%clk 0:02:34]}  dxc5 {[%clk 0:01:19]} 28. Qxg6+ {[%clk 0:02:35]}  Kh8 {[%clk 0:01:10]} 29. exf5 {[%clk 0:02:29]}  b3 {[%clk 0:00:38]} 30. f6 {[%clk 0:02:22]}  Qf8 {[%clk 0:00:28]} 31. Qb1 {[%clk 0:02:20]}  Qd6 {[%clk 0:00:17]} 32. Qxb3 {[%clk 0:02:18]}  b6 {[%clk 0:00:13]} 33. Ra6 {[%clk 0:02:17]}  Rb8 {[%clk 0:00:12]} 34. Nc6 {[%clk 0:02:14]}  Bxc6 {[%clk 0:00:11]} 35. dxc6 {[%clk 0:02:15]}  Qxf6 {[%clk 0:00:09]} 36. c7 {[%clk 0:02:15]}  Rc8 {[%clk 0:00:09]} 37. Rxb6 {[%clk 0:02:16]}  Qe7 {[%clk 0:00:08]} 38. Rb8 {[%clk 0:02:12]}  Qxc7 {[%clk 0:00:08]} 39. Rxc8+ {[%clk 0:02:12]}  Qxc8 {[%clk 0:00:09]} 40. Qxf7 {[%clk 0:02:12]}  Bg7 {[%clk 0:00:09]} 41. Qxh5+ {[%clk 0:02:12]} 1-0


[Site "https://www.chess.com"]

[Event "Titled Tuesday Blitz September 13 Late 2022"]
[White "Andreikin, Dmitry"]
[Black "Sarana, Alexey"]
[WhiteFideId "4158814"]
[BlackFideId "24133795"]
[WhiteElo "2736"]
[BlackElo "2689"]
[Result "1/2-1/2"]
[Round "08"]
[TimeControl "180+1"]
[Date "2022.09.13"]
[WhiteClock "0:02:41"]
[BlackClock "0:02:49"]

1. d4 {[%clk 0:03:00]}  Nf6 {[%clk 0:03:00]} 2. c4 {[%clk 0:03:01]}  e6 {[%clk 0:03:00]} 3. Nf3 {[%clk 0:03:02]}  d5 {[%clk 0:03:01]} 4. g3 {[%clk 0:03:02]}  dxc4 {[%clk 0:02:58]} 5. Bg2 {[%clk 0:03:01]}  Nbd7 {[%clk 0:02:58]} 6. O-O {[%clk 0:03:00]}  c6 {[%clk 0:02:59]} 7. Nc3 {[%clk 0:02:47]}  b5 {[%clk 0:02:57]} 8. e4 {[%clk 0:02:47]}  Bb7 {[%clk 0:02:56]} 9. e5 {[%clk 0:02:47]}  Nd5 {[%clk 0:02:56]} 10. Ng5 {[%clk 0:02:48]}  Be7 {[%clk 0:02:49]} 11. Qh5 {[%clk 0:02:47]}  g6 {[%clk 0:02:49]} 12. Qh6 {[%clk 0:02:47]}  Bf8 {[%clk 0:02:49]} 13. Qh3 {[%clk 0:02:46]}  Be7 {[%clk 0:02:48]} 14. Qh6 {[%clk 0:02:44]}  Bf8 {[%clk 0:02:48]} 15. Qh3 {[%clk 0:02:44]}  Be7 {[%clk 0:02:49]} 16. Qh6 {[%clk 0:02:41]} 1/2-1/2


[Site "https://www.chess.com"]

[Event "Titled Tuesday Blitz September 13 Late 2022"]
[White "Arnold, Ken"]
[Black "Indjic, Aleksandar"]
[WhiteFideId "2056836"]
[BlackFideId "911925"]
[WhiteElo "2464"]
[BlackElo "2592"]
[Result "0-1"]
[Round "08"]
[TimeControl "180+1"]
[Date "2022.09.13"]
[WhiteClock "0:00:47"]
[BlackClock "0:01:56"]

1. d4 {[%clk 0:03:00]}  Nf6 {[%clk 0:02:58]} 2. Nf3 {[%clk 0:03:00]}  e6 {[%clk 0:02:58]} 3. c4 {[%clk 0:03:00]}  c5 {[%clk 0:02:58]} 4. d5 {[%clk 0:02:57]}  d6 {[%clk 0:02:58]} 5. Nc3 {[%clk 0:02:57]}  exd5 {[%clk 0:02:58]} 6. cxd5 {[%clk 0:02:57]}  g6 {[%clk 0:02:59]} 7. Bg5 {[%clk 0:02:57]}  a6 {[%clk 0:02:57]} 8. e3 {[%clk 0:02:56]}  h6 {[%clk 0:02:55]} 9. Bh4 {[%clk 0:02:53]}  g5 {[%clk 0:02:55]} 10. Bg3 {[%clk 0:02:54]}  b5 {[%clk 0:02:48]} 11. Bd3 {[%clk 0:02:51]}  Nh5 {[%clk 0:02:47]} 12. Bc2 {[%clk 0:02:44]}  Bg7 {[%clk 0:02:45]} 13. O-O {[%clk 0:02:42]}  Nxg3 {[%clk 0:02:43]} 14. hxg3 {[%clk 0:02:37]}  Nd7 {[%clk 0:02:43]} 15. a4 {[%clk 0:02:33]}  b4 {[%clk 0:02:41]} 16. Ne4 {[%clk 0:02:33]}  Qe7 {[%clk 0:02:40]} 17. Rb1 {[%clk 0:02:27]}  f5 {[%clk 0:02:38]} 18. Nxd6+ {[%clk 0:02:08]}  Qxd6 {[%clk 0:02:36]} 19. Bxf5 {[%clk 0:02:08]}  Ne5 {[%clk 0:02:35]} 20. Nxe5 {[%clk 0:02:02]}  Bxe5 {[%clk 0:02:32]} 21. Qh5+ {[%clk 0:02:00]}  Kd8 {[%clk 0:02:27]} 22. Be6 {[%clk 0:01:53]}  Bxe6 {[%clk 0:02:19]} 23. dxe6 {[%clk 0:01:53]}  Qxe6 {[%clk 0:02:18]} 24. Rfd1+ {[%clk 0:01:49]}  Ke7 {[%clk 0:02:17]} 25. f4 {[%clk 0:01:48]}  Bf6 {[%clk 0:02:16]} 26. Qf3 {[%clk 0:01:45]}  Rad8 {[%clk 0:02:10]} 27. f5 {[%clk 0:01:35]}  Qc8 {[%clk 0:02:04]} 28. Qe4+ {[%clk 0:01:31]}  Kf7 {[%clk 0:02:04]} 29. Rd5 {[%clk 0:01:23]}  Rhe8 {[%clk 0:02:01]} 30. Qc4 {[%clk 0:01:22]}  Rxd5 {[%clk 0:02:00]} 31. Qxd5+ {[%clk 0:01:22]}  Kg7 {[%clk 0:02:01]} 32. Qf3 {[%clk 0:01:02]}  c4 {[%clk 0:02:00]} 33. e4 {[%clk 0:01:00]}  Re7 {[%clk 0:01:57]} 34. Rd1 {[%clk 0:00:51]}  c3 {[%clk 0:01:56]} 35. bxc3 {[%clk 0:00:51]}  bxc3 {[%clk 0:01:57]} 36. Rd6 {[%clk 0:00:47]}  Qc5+ {[%clk 0:01:56]} 0-1


[Site "https://www.chess.com"]

[Event "Titled Tuesday Blitz September 13 Late 2022"]
[White "Bayo Milagro, Alvaro"]
[Black "Sivakumar, Shaaketh"]
[WhiteFideId "22275240"]
[BlackFideId "30940176"]
[WhiteElo "2270"]
[BlackElo "1799"]
[Result "0-1"]
[Round "08"]
[TimeControl "180+1"]
[Date "2022.09.13"]
[WhiteClock "0:00:02"]
[BlackClock "0:00:05"]

1. e4 {[%clk 0:03:00]}  c5 {[%clk 0:02:57]} 2. Nf3 {[%clk 0:03:00]}  d6 {[%clk 0:02:58]} 3. d4 {[%clk 0:02:59]}  cxd4 {[%clk 0:02:58]} 4. Nxd4 {[%clk 0:02:59]}  Nf6 {[%clk 0:02:59]} 5. Nc3 {[%clk 0:03:00]}  a6 {[%clk 0:02:59]} 6. Be2 {[%clk 0:03:00]}  e6 {[%clk 0:02:56]} 7. O-O {[%clk 0:03:00]}  Be7 {[%clk 0:02:49]} 8. Be3 {[%clk 0:02:59]}  O-O {[%clk 0:02:49]} 9. f4 {[%clk 0:02:58]}  Nc6 {[%clk 0:02:46]} 10. a4 {[%clk 0:02:56]}  Bd7 {[%clk 0:02:45]} 11. Nb3 {[%clk 0:02:56]}  e5 {[%clk 0:02:42]} 12. f5 {[%clk 0:02:55]}  Nb4 {[%clk 0:02:40]} 13. a5 {[%clk 0:02:49]}  Bc6 {[%clk 0:02:39]} 14. Bf3 {[%clk 0:02:49]}  d5 {[%clk 0:02:32]} 15. exd5 {[%clk 0:02:47]}  Nbxd5 {[%clk 0:02:32]} 16. Nxd5 {[%clk 0:02:44]}  Nxd5 {[%clk 0:02:28]} 17. Bd2 {[%clk 0:02:43]}  Qc7 {[%clk 0:02:16]} 18. c4 {[%clk 0:02:33]}  Nb4 {[%clk 0:02:07]} 19. Qe2 {[%clk 0:02:25]}  Rad8 {[%clk 0:01:45]} 20. Be3 {[%clk 0:02:22]}  e4 {[%clk 0:01:39]} 21. Bg4 {[%clk 0:02:11]}  Qd6 {[%clk 0:01:26]} 22. Bc5 {[%clk 0:01:25]}  Qf6 {[%clk 0:01:04]} 23. Bxe7 {[%clk 0:01:25]}  Qxe7 {[%clk 0:01:05]} 24. f6 {[%clk 0:01:25]}  Qe5 {[%clk 0:01:04]} 25. fxg7 {[%clk 0:01:22]}  Kxg7 {[%clk 0:01:00]} 26. Rf5 {[%clk 0:01:10]}  Qe7 {[%clk 0:01:00]} 27. Raf1 {[%clk 0:01:05]}  Rd6 {[%clk 0:00:49]} 28. Bh5 {[%clk 0:01:03]}  Be8 {[%clk 0:00:33]} 29. Nc5 {[%clk 0:00:38]}  f6 {[%clk 0:00:26]} 30. Nxe4 {[%clk 0:00:36]}  Bxh5 {[%clk 0:00:26]} 31. Rxh5 {[%clk 0:00:31]}  Re6 {[%clk 0:00:26]} 32. Qg4+ {[%clk 0:00:28]}  Kh8 {[%clk 0:00:26]} 33. Ng3 {[%clk 0:00:27]}  Nc2 {[%clk 0:00:21]} 34. Nf5 {[%clk 0:00:23]}  Qc5+ {[%clk 0:00:20]} 35. Kh1 {[%clk 0:00:23]}  Qc7 {[%clk 0:00:14]} 36. Nh4 {[%clk 0:00:15]}  f5 {[%clk 0:00:12]} 37. Rhxf5 {[%clk 0:00:10]}  Rg8 {[%clk 0:00:10]} 38. Rg5 {[%clk 0:00:08]}  Ree8 {[%clk 0:00:06]} 39. Rxg8+ {[%clk 0:00:03]}  Rxg8 {[%clk 0:00:07]} 40. Qe2 {[%clk 0:00:03]}  Nd4 {[%clk 0:00:06]} 41. Qe4 {[%clk 0:00:03]}  Qg7 {[%clk 0:00:06]} 42. Rd1 {[%clk 0:00:02]}  Nc6 {[%clk 0:00:05]} 43. Nf5 {[%clk 0:00:02]}  Qxb2 {[%clk 0:00:05]} 44. h3 {[%clk 0:00:01]}  Qf6 {[%clk 0:00:05]} 45. Rd6 {[%clk 0:00:01]}  Qe5 {[%clk 0:00:04]} 46. Qxe5+ {[%clk 0:00:01]}  Nxe5 {[%clk 0:00:05]} 47. Rb6 {[%clk 0:00:01]}  Nxc4 {[%clk 0:00:05]} 48. Rxb7 {[%clk 0:00:01]}  Nxa5 {[%clk 0:00:05]} 49. Nh6 {[%clk 0:00:02]}  Nxb7 {[%clk 0:00:05]} 0-1


[Site "https://www.chess.com"]

[Event "Titled Tuesday Blitz September 13 Late 2022"]
[White "Cardoso Cardoso, Jose Gabriel"]
[Black "Winterberg, Lukas"]
[WhiteFideId "4430492"]
[BlackFideId "24622702"]
[WhiteElo "2485"]
[BlackElo "2349"]
[Result "1-0"]
[Round "08"]
[TimeControl "180+1"]
[Date "2022.09.13"]
[WhiteClock "0:00:03"]
[BlackClock "0:00:12"]

1. d4 {[%clk 0:02:30]}  Nf6 {[%clk 0:02:58]} 2. Nf3 {[%clk 0:02:24]}  d5 {[%clk 0:02:58]} 3. Bg5 {[%clk 0:02:24]}  Ne4 {[%clk 0:02:54]} 4. Bf4 {[%clk 0:02:23]}  Bf5 {[%clk 0:02:51]} 5. e3 {[%clk 0:02:23]}  e6 {[%clk 0:02:51]} 6. Bd3 {[%clk 0:02:13]}  c5 {[%clk 0:02:49]} 7. Bxb8 {[%clk 0:02:08]}  Rxb8 {[%clk 0:02:40]} 8. Bb5+ {[%clk 0:02:05]}  Ke7 {[%clk 0:02:40]} 9. c3 {[%clk 0:02:01]}  cxd4 {[%clk 0:02:36]} 10. exd4 {[%clk 0:01:49]}  f6 {[%clk 0:02:33]} 11. O-O {[%clk 0:01:44]}  Kf7 {[%clk 0:02:34]} 12. Nh4 {[%clk 0:01:34]}  Bg6 {[%clk 0:02:28]} 13. Nd2 {[%clk 0:01:07]}  Qb6 {[%clk 0:02:13]} 14. Nxe4 {[%clk 0:00:44]}  Qxb5 {[%clk 0:01:55]} 15. Ng3 {[%clk 0:00:40]}  Qxb2 {[%clk 0:01:50]} 16. Qa4 {[%clk 0:00:40]}  Qb6 {[%clk 0:01:39]} 17. f4 {[%clk 0:00:34]}  Bd3 {[%clk 0:01:32]} 18. Rfe1 {[%clk 0:00:32]}  Qc6 {[%clk 0:01:26]} 19. Qd1 {[%clk 0:00:26]}  Be4 {[%clk 0:01:23]} 20. f5 {[%clk 0:00:21]}  exf5 {[%clk 0:01:17]} 21. Qh5+ {[%clk 0:00:21]}  g6 {[%clk 0:01:08]} 22. Nxg6 {[%clk 0:00:20]}  hxg6 {[%clk 0:01:08]} 23. Qxh8 {[%clk 0:00:20]}  Qxc3 {[%clk 0:01:09]} 24. Rad1 {[%clk 0:00:17]}  Re8 {[%clk 0:00:53]} 25. Nxe4 {[%clk 0:00:10]}  fxe4 {[%clk 0:00:44]} 26. Rf1 {[%clk 0:00:09]}  Bg7 {[%clk 0:00:39]} 27. Qh7 {[%clk 0:00:09]}  e3 {[%clk 0:00:38]} 28. Rxf6+ {[%clk 0:00:09]}  Kxf6 {[%clk 0:00:35]} 29. Rf1+ {[%clk 0:00:09]}  Ke6 {[%clk 0:00:32]} 30. Qxg7 {[%clk 0:00:08]}  Re7 {[%clk 0:00:30]} 31. Qe5+ {[%clk 0:00:04]}  Kd7 {[%clk 0:00:30]} 32. Qxd5+ {[%clk 0:00:05]}  Kc7 {[%clk 0:00:30]} 33. Qg5 {[%clk 0:00:03]}  Rd7 {[%clk 0:00:24]} 34. Qf4+ {[%clk 0:00:03]}  Rd6 {[%clk 0:00:21]} 35. Qf7+ {[%clk 0:00:03]}  Kc6 {[%clk 0:00:21]} 36. Qf3+ {[%clk 0:00:04]}  Kc7 {[%clk 0:00:18]} 37. Qf7+ {[%clk 0:00:04]}  Kc6 {[%clk 0:00:14]} 38. Qe8+ {[%clk 0:00:04]}  Kb6 {[%clk 0:00:13]} 39. Rb1+ {[%clk 0:00:03]}  Ka5 {[%clk 0:00:12]} 40. Qb5# {[%clk 0:00:03]} 1-0


[Site "https://www.chess.com"]

[Event "Titled Tuesday Blitz September 13 Late 2022"]
[White "Dilanyan, Grigor"]
[Black "Maksimovic, Bojan"]
[WhiteFideId "13303570"]
[BlackFideId "14408120"]
[WhiteElo "2264"]
[BlackElo "2447"]
[Result "0-1"]
[Round "08"]
[TimeControl "180+1"]
[Date "2022.09.13"]
[WhiteClock "0:01:49"]
[BlackClock "0:01:23"]

1. d4 {[%clk 0:03:00]}  c5 {[%clk 0:02:59]} 2. c3 {[%clk 0:02:57]}  Qa5 {[%clk 0:02:58]} 3. Nf3 {[%clk 0:02:58]}  cxd4 {[%clk 0:02:57]} 4. Nxd4 {[%clk 0:02:58]}  Nc6 {[%clk 0:02:57]} 5. Nb3 {[%clk 0:02:58]}  Qc7 {[%clk 0:02:56]} 6. g3 {[%clk 0:02:58]}  Nf6 {[%clk 0:02:56]} 7. Bg2 {[%clk 0:02:58]}  g6 {[%clk 0:02:56]} 8. O-O {[%clk 0:02:59]}  Bg7 {[%clk 0:02:56]} 9. Na3 {[%clk 0:02:57]}  O-O {[%clk 0:02:56]} 10. Bf4 {[%clk 0:02:57]}  d6 {[%clk 0:02:55]} 11. Nb5 {[%clk 0:02:57]}  Qb8 {[%clk 0:02:55]} 12. a4 {[%clk 0:02:54]}  a6 {[%clk 0:02:55]} 13. N5d4 {[%clk 0:02:53]}  Bd7 {[%clk 0:02:51]} 14. Nc5 {[%clk 0:02:48]}  Qc7 {[%clk 0:02:11]} 15. Nxd7 {[%clk 0:02:38]}  Nxd7 {[%clk 0:02:12]} 16. Nxc6 {[%clk 0:02:30]}  bxc6 {[%clk 0:02:13]} 17. Rc1 {[%clk 0:02:30]}  Rab8 {[%clk 0:02:11]} 18. b4 {[%clk 0:02:31]}  a5 {[%clk 0:02:11]} 19. Qd3 {[%clk 0:02:22]}  Ne5 {[%clk 0:02:06]} 20. Bxe5 {[%clk 0:02:21]}  Bxe5 {[%clk 0:02:07]} 21. b5 {[%clk 0:02:19]}  cxb5 {[%clk 0:02:07]} 22. axb5 {[%clk 0:02:20]}  Qc5 {[%clk 0:01:59]} 23. c4 {[%clk 0:02:10]}  a4 {[%clk 0:01:49]} 24. Kh1 {[%clk 0:02:07]}  Rfc8 {[%clk 0:01:45]} 25. Rc2 {[%clk 0:02:06]}  a3 {[%clk 0:01:43]} 26. Rb1 {[%clk 0:02:03]}  Bb2 {[%clk 0:01:42]} 27. Qb3 {[%clk 0:02:03]}  Rxb5 {[%clk 0:01:28]} 28. Qa2 {[%clk 0:01:58]}  Rb4 {[%clk 0:01:27]} 29. Bd5 {[%clk 0:01:51]}  e6 {[%clk 0:01:26]} 30. Bf3 {[%clk 0:01:51]}  Rxc4 {[%clk 0:01:25]} 31. Rcxb2 {[%clk 0:01:48]}  axb2 {[%clk 0:01:25]} 32. Rxb2 {[%clk 0:01:49]}  Qxf2 {[%clk 0:01:23]} 0-1


[Site "https://www.chess.com"]

[Event "Titled Tuesday Blitz September 13 Late 2022"]
[White "Fernandez De La Vara, Arnaldo"]
[Black "Vovk, Orest"]
[WhiteFideId "3518388"]
[BlackFideId "14113490"]
[WhiteElo "2387"]
[BlackElo "2203"]
[Result "1/2-1/2"]
[Round "08"]
[TimeControl "180+1"]
[Date "2022.09.13"]
[WhiteClock "0:00:02"]
[BlackClock "0:00:03"]

1. Nf3 {[%clk 0:02:57]}  d5 {[%clk 0:02:59]} 2. g3 {[%clk 0:02:58]}  Nf6 {[%clk 0:02:59]} 3. Bg2 {[%clk 0:02:59]}  Bf5 {[%clk 0:02:59]} 4. O-O {[%clk 0:02:59]}  e6 {[%clk 0:03:00]} 5. d3 {[%clk 0:03:00]}  h6 {[%clk 0:03:00]} 6. Nbd2 {[%clk 0:03:00]}  Be7 {[%clk 0:03:00]} 7. b3 {[%clk 0:02:59]}  O-O {[%clk 0:03:00]} 8. Qe1 {[%clk 0:03:00]}  Bh7 {[%clk 0:02:55]} 9. e4 {[%clk 0:03:00]}  dxe4 {[%clk 0:02:53]} 10. dxe4 {[%clk 0:03:01]}  Nc6 {[%clk 0:02:51]} 11. Bb2 {[%clk 0:02:59]}  Bc5 {[%clk 0:02:47]} 12. Qe2 {[%clk 0:02:53]}  Qe7 {[%clk 0:02:47]} 13. a3 {[%clk 0:02:35]}  a6 {[%clk 0:02:41]} 14. e5 {[%clk 0:02:29]}  Nd7 {[%clk 0:02:27]} 15. b4 {[%clk 0:02:11]}  Ba7 {[%clk 0:02:26]} 16. c4 {[%clk 0:02:11]}  Nb6 {[%clk 0:02:23]} 17. Ne4 {[%clk 0:02:06]}  Na4 {[%clk 0:02:21]} 18. Bc1 {[%clk 0:01:48]}  Nd4 {[%clk 0:02:21]} 19. Nxd4 {[%clk 0:01:48]}  Bxd4 {[%clk 0:02:21]} 20. Rb1 {[%clk 0:01:49]}  Bxe5 {[%clk 0:02:16]} 21. Rb3 {[%clk 0:01:48]}  Rad8 {[%clk 0:02:10]} 22. g4 {[%clk 0:01:42]}  Bd4 {[%clk 0:01:50]} 23. g5 {[%clk 0:01:37]}  hxg5 {[%clk 0:01:44]} 24. Nxg5 {[%clk 0:01:38]}  Bg6 {[%clk 0:01:31]} 25. Rh3 {[%clk 0:01:37]}  Bf6 {[%clk 0:01:21]} 26. Qg4 {[%clk 0:01:30]}  Bxg5 {[%clk 0:01:03]} 27. Qxg5 {[%clk 0:01:16]}  Qxg5 {[%clk 0:01:00]} 28. Bxg5 {[%clk 0:01:17]}  Rd4 {[%clk 0:00:50]} 29. Bxb7 {[%clk 0:01:10]}  Rxc4 {[%clk 0:00:40]} 30. Bxa6 {[%clk 0:01:10]}  Rg4+ {[%clk 0:00:38]} 31. Rg3 {[%clk 0:01:10]}  Rxg3+ {[%clk 0:00:38]} 32. hxg3 {[%clk 0:01:11]}  Ra8 {[%clk 0:00:35]} 33. Bb7 {[%clk 0:01:03]}  Ra7 {[%clk 0:00:35]} 34. Bc6 {[%clk 0:01:03]}  Nc3 {[%clk 0:00:27]} 35. a4 {[%clk 0:01:03]}  Ne2+ {[%clk 0:00:22]} 36. Kh2 {[%clk 0:00:43]}  Nd4 {[%clk 0:00:23]} 37. Be3 {[%clk 0:00:43]}  Nxc6 {[%clk 0:00:21]} 38. Bxa7 {[%clk 0:00:44]}  Nxa7 {[%clk 0:00:21]} 39. b5 {[%clk 0:00:45]}  Bc2 {[%clk 0:00:15]} 40. Rc1 {[%clk 0:00:13]}  Bxa4 {[%clk 0:00:15]} 41. Ra1 {[%clk 0:00:14]}  Bxb5 {[%clk 0:00:13]} 42. Rxa7 {[%clk 0:00:14]}  c6 {[%clk 0:00:13]} 43. Kh3 {[%clk 0:00:09]}  g6 {[%clk 0:00:11]} 44. Kg4 {[%clk 0:00:08]}  Kg7 {[%clk 0:00:11]} 45. Kg5 {[%clk 0:00:07]}  Bc4 {[%clk 0:00:11]} 46. Rc7 {[%clk 0:00:07]}  Bd5 {[%clk 0:00:11]} 47. f4 {[%clk 0:00:08]}  Bf3 {[%clk 0:00:10]} 48. Rc8 {[%clk 0:00:03]}  Bd5 {[%clk 0:00:10]} 49. Rc7 {[%clk 0:00:03]}  Be4 {[%clk 0:00:10]} 50. g4 {[%clk 0:00:03]}  Bf3 {[%clk 0:00:10]} 51. f5 {[%clk 0:00:03]}  exf5 {[%clk 0:00:09]} 52. gxf5 {[%clk 0:00:04]}  gxf5 {[%clk 0:00:09]} 53. Kxf5 {[%clk 0:00:05]}  Bd5 {[%clk 0:00:09]} 54. Ke5 {[%clk 0:00:05]}  Kg6 {[%clk 0:00:10]} 55. Rc8 {[%clk 0:00:04]}  f6+ {[%clk 0:00:09]} 56. Kf4 {[%clk 0:00:04]}  Kf7 {[%clk 0:00:07]} 57. Rc7+ {[%clk 0:00:03]}  Ke6 {[%clk 0:00:07]} 58. Rc8 {[%clk 0:00:04]}  f5 {[%clk 0:00:06]} 59. Re8+ {[%clk 0:00:03]}  Kd7 {[%clk 0:00:06]} 60. Rf8 {[%clk 0:00:03]}  Be4 {[%clk 0:00:06]} 61. Ke5 {[%clk 0:00:03]}  Kc7 {[%clk 0:00:06]} 62. Rf6 {[%clk 0:00:03]}  Kb6 {[%clk 0:00:06]} 63. Kd6 {[%clk 0:00:03]}  Kb5 {[%clk 0:00:06]} 64. Rf7 {[%clk 0:00:03]}  c5 {[%clk 0:00:06]} 65. Rc7 {[%clk 0:00:02]}  c4 {[%clk 0:00:06]} 66. Ke5 {[%clk 0:00:02]}  Kb4 {[%clk 0:00:04]} 67. Kd4 {[%clk 0:00:02]}  Bd3 {[%clk 0:00:04]} 68. Rb7+ {[%clk 0:00:03]}  Ka5 {[%clk 0:00:04]} 69. Kc5 {[%clk 0:00:03]}  Ka4 {[%clk 0:00:04]} 70. Rf7 {[%clk 0:00:02]}  Kb3 {[%clk 0:00:04]} 71. Kd4 {[%clk 0:00:02]}  Kc2 {[%clk 0:00:04]} 72. Rxf5 {[%clk 0:00:02]}  Bxf5 {[%clk 0:00:03]} 73. Kxc4 {[%clk 0:00:02]} 1/2-1/2


[Site "https://www.chess.com"]